Cogmind - Beta 12 *** ADVENTURER MODE // 2023.07.05 @ 18:25:46 Player: N-m0 Result: Destroyed by Y-45 Defender with Beam Rifle Performance ------------- Evolutions (2) 1000 Regions Visited (3) 600 Robots Destroyed (93) 465 Value Destroyed (2871) 2871 Prototype IDs (0) 0 Alien Tech Used (0) 0 Bonus (0) 0 TOTAL SCORE: 4936 Bonus ------- None Cogmind --------- Core Integrity 0/550 Matter 287/300 Energy 290/290 System Corruption 0% Temperature Cool (9) Movement Treading (160) Location -8/Materials Parts ------- > --- POWER (2) -------- Ion Engine Light Deuterium Engine > --- PROPULSION (4) --- Light Treads Light Treads Light Treads > --- UTILITY (3) ------ Advanced Heat Sink Trap Scanner Transport Network Coupler > --- WEAPON (2) ------- Pulse Rifle Axe > --- INVENTORY (5) ---- Light Treads Field Recycling Unit (32) Particle Gun EM Pulse Cannon Peak State ------------ > --- POWER ------------ Improved Ion Engine Improved Ion Engine > --- PROPULSION ------- Improved Treads Improved Treads Advanced Treads Advanced Treads > --- UTILITY ---------- Cooling System Core Shielding Weapon Shielding > --- WEAPON ----------- EM Pulse Cannon EM Pulse Cannon > --- INVENTORY -------- Armored Wheel Armored Wheel Field Recycling Unit Light EM Pulse Cannon Light EM Pulse Cannon [Rating: 25] Favorites ----------- Power Improved Ion Engine Engine Improved Ion Engine Power Core Light Nuclear Core Propulsion Light Treads Treads Light Treads Wheel Armored Wheel Utility Core Shielding Device Cooling System Processor Transport Network Coupler Protection Core Shielding Weapon Particle Gun Energy Gun Particle Gun Energy Cannon Light EM Pulse Cannon Ballistic Gun Light Assault Rifle Slashing Weapon Axe Special Melee Weapon Improved Datajack Build | -11 -10 -9 -8 ------- Run | Jun Mat Mat Mat Slots Evolved 4 | . . 2 2 Power 1 | . . 1 . Propulsion 2 | . . . 2 Utility 1 | . . 1 . Weapon . | . . . . Parts Attached 97 | 5 20 41 31 Power 16 | 1 4 6 5 Engine 15 | 1 4 6 4 Core 1 | . . . 1 Reactor . | . . . . Propulsion 27 | 2 6 12 7 Treads 24 | 2 6 9 7 Leg . | . . . . Wheel 3 | . . 3 . Hover . | . . . . Flight . | . . . . Utility 25 | . 7 10 8 Device 15 | . 3 6 6 Storage . | . . . . Processor 1 | . . . 1 Hackware . | . . . . Protection 9 | . 4 4 1 Artifact . | . . . . Weapon 29 | 2 3 13 11 Energy Gun 14 | 2 2 8 2 Energy Cannon 11 | . 1 4 6 Ballistic Gun 1 | . . 1 . Ballistic Cannon . | . . . . Launcher . | . . . . Special Weapon . | . . . . Impact Weapon . | . . . . Slashing Weapon 1 | . . . 1 Piercing Weapon . | . . . . Special Melee Weapon 2 | . . . 2 Unidentified Prototypes . | . . . . Parts Lost 23 | . 1 6 16 Power 6 | . 1 1 4 Propulsion 3 | . . 1 2 Utility 5 | . . . 5 Weapon 9 | . . 4 5 Highest Loss Streak 13 | . 1 2 13 To Critical Strikes . | . . . . Average Slot Usage (%) 89 | . 92 92 75 Engine 15 | . 12 17 13 Treads 24 | . 27 21 22 Device 10 | . 8 10 10 Protection 16 | . 13 21 9 Energy Gun 12 | . 17 12 2 Energy Cannon 8 | . 9 6 11 Naked Turns . | . . . . Heaviest Build 32 | 7 16 32 30 Greatest Support 90 | 40 40 44 90 Greatest Overweight (x) 7 | . . 7 4 Average Overweight (x) . | . . . . Largest Inventory Capacity 5 | 5 5 5 5 Average Capacity 5 | 5 5 5 5 Most Carried 5 | 2 5 5 5 Average Carried 2 | . 1 3 1 Final Capacity 5 | 5 5 5 5 Final Carried 5 | . 3 5 4 Class Distribution -------------------- 93% | Mutant 6% | Scavenger-Mutant Dominant Class ---------------- Mutant | -10/Materials Mutant | -9/Materials Mutant | -8/Materials Resources | -11 -10 -9 -8 ----------- Run | Jun Mat Mat Mat Matter Collected 1146 | 190 267 457 232 Remotely . | . . . . Salvage Created 3801 | . 363 2089 1349 Parts 218 | . 21 142 55 Haulers Intercepted 4 | . . . 4 Recyclers Shooed 2 | . . . 2 Parts Field Recycled 22 | . . 19 3 Retrieved Matter 70 | . . 59 11 Parts Self-Destructed . | . . . . Prevented . | . . . . Kills | -11 -10 -9 -8 ------- Run | Jun Mat Mat Mat Combat Hostiles Destroyed 70 | . 8 44 18 Melee 1 | . 1 . . Guns 39 | . 5 31 3 Cannons 20 | . 2 9 9 AOE 7 | . . 3 4 Classes Destroyed 12 | . 3 5 4 Worker 1 | . . . 1 Builder 2 | . 1 1 . Hauler 4 | . . . 4 Recycler 2 | . . 1 1 Mechanic 1 | . . 1 . Operator 4 | . . 3 1 Watcher 11 | . 3 5 3 Swarmer 10 | . . 10 . Grunt 44 | . 8 24 12 Brawler 1 | . . . 1 Sentry 14 | . . 10 4 Hunter 1 | . . . 1 Best Kill Streak 5 | . 4 5 5 Combat Bots Only 4 | . 3 4 3 Max Kills in Single Turn 3 | . 1 3 2 Gunslinging 1 | . . 1 . Exploded 3 | . . 3 2 Melee 1 | . 1 . . Uniques/NPCs Destroyed . | . . . . Combat | -11 -10 -9 -8 -------- Run | Jun Mat Mat Mat Damage Taken 3901 | . 551 1465 1885 Core 956 | . 101 294 561 Absorbed by Shields . | . . . . Redirected to Shielding 153 | . 8 83 62 Regen/Repaired (Parts) 277 | . 36 241 . Core Remaining (%) 61 | 100 59 26 . Volleys Fired 246 | . 35 121 90 Largest 2 | . 2 2 2 Hottest 128 | . 125 112 128 Shots Fired 409 | . 70 215 124 Gun 271 | . 63 179 29 Cannon 138 | . 7 36 95 Launcher . | . . . . Special . | . . . . Kinetic 8 | . . 8 . Thermal 158 | . 70 31 57 Explosive . | . . . . Electromagnetic 243 | . . 176 67 Robot Hit Streak 25 | . 25 14 18 Robot Miss Streak 3 | . 2 3 2 Penetration Max . | . . . . Secondary Targets 3 | . 1 2 . Max Gunslinging Chain 1 | . 1 1 . Shots Hit Robots 284 | . 56 148 80 Core Hits 136 | . 19 78 39 Critical Kills 1 | . . . 1 Critical Parts Destroyed . | . . . . Critical Strikes 11 | . 1 9 1 Burn 5 | . 1 4 . Meltdown 1 | . . . 1 Corrupt 5 | . . 5 . Melee Attacks 2 | . . . 2 Impact . | . . . . Slashing . | . . . . Piercing . | . . . . Sneak Attacks . | . . . . Combat Hostiles . | . . . . Follow-up Attacks . | . . . . Damage Inflicted 5776 | . 722 2892 2162 Guns 3146 | . 616 2100 430 Cannons 1890 | . 105 511 1274 Explosions 723 | . . 281 442 Melee . | . . . . Ramming 17 | . 1 . 16 Kinetic 34 | . . 34 . Thermal 2788 | . 721 708 1359 Explosive . | . . . . Electromagnetic 2937 | . . 2150 787 Impact . | . . . . Slashing . | . . . . Piercing . | . . . . Highest Corruption 2 | . 1 2 . Average Corruption 1 | . 1 1 . Corruption Purged . | . . . . Corruption Blocked . | . . . . Effects 48 | . 9 39 . Message Errors 20 | . 5 15 . Matter Fused 10 | . 1 9 . Heat Flow Errors 5 | . 2 3 . Energy Discharges 5 | . 1 4 . Data Loss (minor) 4 | . . 4 . Misfires 4 | . . 4 . Overload Shots . | . . . . Overflow Damage 105 | . . 88 17 Projectiles . | . . . . Explosions 105 | . . 88 17 Melee . | . . . . Knockbacks . | . . . . Impact . | . . . . Kinetic . | . . . . Secondary . | . . . . Self-Inflicted Damage 165 | . . 125 40 Shots 3 | . . 2 1 Rammed 4 | . . . 4 Targets Rammed 6 | . 1 . 5 Kicked . | . . . . Crushed 2 | . 1 . 1 Highest Temperature 440 | . 440 218 348 Average Temperature 97 | . 155 27 77 Received Heat Transfer 2214 | . 333 639 1242 Effects 6 | . 5 . 1 Shutdowns 1 | . 1 . . Energy Bleed 3 | . 2 . 1 Damage (minor) 2 | . 2 . . Siege Activations . | . . . . Robots Corrupted 3 | . . 2 1 Combat Hostiles 2 | . . 1 1 Parts Fried 20 | . . 15 5 Impact Corruptions . | . . . . Robots Melted 1 | . . . 1 Combat Hostiles 1 | . . . 1 Parts Melted 12 | . 4 4 4 Heat Transferred 5377 | . 1693 1482 2202 Parts Sabotaged . | . . . . Parts Stolen . | . . . . Parts Stripped . | . . . . Power Chain Reactions 5 | . . . 5 Missiles Intercepted . | . . . . Alert | -11 -10 -9 -8 ------- Run | Jun Mat Mat Mat Peak Influence 273 | . 94 273 188 Initial . | . . . . Average 53 | . 10 86 56 Maximum Alert Level 1 | . . 1 . Low Security (%) 94 | 100 100 87 100 Level 1 5 | . . 12 . Level 2 . | . . . . Level 3 . | . . . . Level 4 . | . . . . Level 5 . | . . . . High Security . | . . . . Max Security . | . . . . Squads Dispatched 15 | . 3 9 3 Investigation 12 | . 3 7 2 Extermination . | . . . . Reinforcement 3 | . . 2 1 Assault . | . . . . Garrison . | . . . . Intercept . | . . . . Searches Triggered . | . . . . Construction Impeded . | . . . . Haulers Reinforced . | . . . . Active Scanning Responses . | . . . . Cargo Convoy Interrupts . | . . . . Stealth | -11 -10 -9 -8 --------- Run | Jun Mat Mat Mat Distress Signals 2 | . 1 1 . Communications Jammed . | . . . . Distress Signals . | . . . . Times Spotted 107 | . 14 62 31 Peak Tracking Total 6 | . 3 5 6 Tactical Retreats 4 | . . 2 2 Traps | -11 -10 -9 -8 ------- Run | Jun Mat Mat Mat Traps Triggered 8 | . 4 3 1 Indirectly . | . . . . Trap Hack Attempts . | . . . . Triggered . | . . . . Disarmed . | . . . . Reprogrammed 4 | . 4 . . Reused 1 | . 1 . . Traps Extracted . | . . . . Installed . | . . . . Triggered 1 | . 1 . . Machines | -11 -10 -9 -8 ---------- Run | Jun Mat Mat Mat Machines Disabled 10 | . . 10 . Max in Single Turn 7 | . . 7 . Machines Repaired . | . . . . Machines Sabotaged . | . . . . Overloaded Fab Kills . | . . . . Hacking | -11 -10 -9 -8 --------- Run | Jun Mat Mat Mat Machines Accessed 18 | . 4 10 4 Terminals 8 | . 1 5 2 Fabricators . | . . . . Repair Stations 3 | . 1 2 . Recycling Units 3 | . 2 1 . Scanalyzers 4 | . . 2 2 Garrison Access . | . . . . Total Hacks 78 | . 18 47 13 Successful 60 | . 13 38 9 Failed 18 | . 5 9 4 Catastrophic 2 | . . . 2 Database Lockouts . | . . . . Manual . | . . . . Terminals 33 | . 5 22 6 Fabricators . | . . . . Repair Stations 18 | . 4 14 . Recycling Units 10 | . 9 1 . Scanalyzers 17 | . . 10 7 Garrison Access . | . . . . Terminal Hacks 20 | . 2 16 2 Record 6 | . . 4 2 Robot Analysis 1 | . 1 . . Emergency Access Points 1 | . . 1 . Alert Level 4 | . . 4 . Unreport Threat 2 | . . 2 . Reprogram Traps 1 | . 1 . . Dispatch Records 1 | . . 1 . Reinforcement Status 1 | . . 1 . Recall Reinforcements 1 | . . 1 . Hauler Manifests 1 | . . 1 . Zone Layout 1 | . . 1 . Fabricator Hacks . | . . . . Repair Station Hacks 16 | . 3 13 . Scan Component 9 | . 2 7 . Repair 7 | . 1 6 . Recycling Unit Hacks 9 | . 8 1 . Recycle Component 3 | . 3 . . Process 1 | . 1 . . Report Inventory 4 | . 3 1 . Retrieve Components 1 | . 1 . . Scanalyzer 15 | . . 8 7 Insert Component 7 | . . 4 3 Analyze 8 | . . 4 4 Garrison Access Hacks . | . . . . Unauthorized Hacks . | . . . . Terminals . | . . . . Fabricators . | . . . . Repair Stations . | . . . . Recycling Units . | . . . . Scanalyzers . | . . . . Garrison Access . | . . . . Data Cores Recovered 2 | . . 2 . Used 1 | . . 1 . Hacking Detections 16 | . 4 8 4 Full Trace Events 15 | . 4 8 3 Feedback Events 1 | . . 1 . Corruption 1 | . . 1 . Feedback Blocked . | . . . . Robot Schematics Acquired . | . . . . Robots Built . | . . . . Authchips . | . . . . Time . | . . . . Total Robot Build Rating . | . . . . Part Schematics Acquired 6 | . . 3 3 Parts Built . | . . . . Authchips . | . . . . Time . | . . . . Total Part Build Rating . | . . . . Parts Repaired 7 | . 1 6 . Time 212 | . 32 180 . Parts Recycled 3 | . 3 . . Recycled Matter . | . . . . Retrieved Matter . | . . . . Retrieved Components 6 | . 6 . . Parts Scanalyzed 6 | . . 4 2 Part Schematics Acquired 6 | . . 3 3 Parts Damaged . | . . . . Bothacking | -11 -10 -9 -8 ------------ Run | Jun Mat Mat Mat Used RIF Installer . | . . . . Robots Hacked 1 | . . . 1 Non-combat . | . . . . Combat 1 | . . . 1 Robot Hacks Applied 1 | . . . 1 parse_system 1 | . . . 1 Relay Couplers Released . | . . . . Fabnet Peak Effective % . | . . . . Robots Rewired . | . . . . Allies Hacked . | . . . . Hacks Repelled . | . . . . Allies | -11 -10 -9 -8 -------- Run | Jun Mat Mat Mat Total Allies . | . . . . Largest Group . | . . . . Highest-Rated Group . | . . . . Highest-Rated Ally . | . . . . Total Orders . | . . . . Ally Attacks . | . . . . Total Damage . | . . . . Kills . | . . . . Allies Corrupted . | . . . . Allies Melted . | . . . . Intel | -11 -10 -9 -8 ------- Run | Jun Mat Mat Mat Robot Analysis Total 1 | . 1 . . Derelict Logs Recovered . | . . . . Drone Launches . | . . . . Drone Recoveries . | . . . . Exploration | -11 -10 -9 -8 ------------- Run | Jun Mat Mat Mat Turns Passed 8756 | 77 3002 4026 1651 Spaces Moved 4445 | 45 1604 2084 712 Core 143 | 6 . 16 121 Treads 4254 | 39 1604 2020 591 Legs . | . . . . Wheels 48 | . . 48 . Hover . | . . . . Flight . | . . . . Fastest Speed 50 | 50 160 90 50 Average Speed 154 | 145 160 151 148 Slowest Speed 400 | 160 160 400 250 Overloaded Moves . | . . . . Propulsion Burnouts . | . . . . Robots Hopped . | . . . . Cave-ins Triggered . | . . . . Exploration Rate (%) 61 | 4 100 99 42 Regions Visited 3 Branch Regions . Pre-discovered Areas . | . . . . Known Exits Taken . | . . . . Unknown Exits Taken 3 | 1 1 1 . Scrap Searched . | . . . . Spaces Dug . | . . . . Terrain Destroyed 65 | . . 47 18 Melee . | . . . . Projectile 6 | . . . 6 AOE 59 | . . 47 12 Terrain Rammed . | . . . . Walls Destroyed . | . . . . Machines Disabled . | . . . . Actions | -11 -10 -9 -8 --------- Run | Jun Mat Mat Mat Total 5970 | 56 1975 2752 1187 Wait 1017 | 3 280 439 295 Move 4442 | 44 1603 2083 712 Hop . | . . . . Pick Up 71 | 4 19 25 23 Fast Attach 38 | 1 5 24 8 Attach 49 | 4 14 8 23 Detach 30 | . 6 10 14 Swap 10 | . 1 9 . Drop 59 | . 11 33 15 Fire 246 | . 35 121 90 Melee 2 | . . . 2 Ram 4 | . . . 4 Kick . | . . . . Crush 2 | . 1 . 1 Escape Stasis . | . . . . Rewire . | . . . . Trap . | . . . . Miscellaneous . | . . . . Route ------- -11/Junkyard -10/Materials (discovered 4 exits: *Mat x3 / [*Min]) -9/Materials (discovered 5 exits: *Mat x3 / [*Min] / [*Sto]) -8/Materials History --------- Turn | Location | Event 8 | -11/Junkyard | Discovered new exit (range 15) 78 | -11/Junkyard | Entered Materials 307 | -10/Materials | Build established: Mutant 673 | -10/Materials | Discovered new exit (range 15) 1191 | -10/Materials | Discovered new exit (range 14) 1255 | -10/Materials | Discovered new exit (range 16) 1604 | -10/Materials | Repaired Particle Gun 2237 | -10/Materials | Discovered new exit (range 6) 3080 | -10/Materials | Entered another Materials area 3080 | -9/Materials | Evolved 2 slots: Power x1, Utility x1 3947 | -9/Materials | Discovered new exit (range 8) 4247 | -9/Materials | Discovered new exit (range 14) 4582 | -9/Materials | Repaired Imp. Ion Engine 4625 | -9/Materials | Repaired Core Shielding 4653 | -9/Materials | Repaired Core Shielding 4775 | -9/Materials | Repaired Lgt. Treads 4819 | -9/Materials | Discovered new exit (range 16) 5153 | -9/Materials | Discovered new exit (range 16) 5229 | -9/Materials | Core integrity fell below 50% 5659 | -9/Materials | Repaired Shock Rifle 6152 | -9/Materials | Discovered new exit (range 3) 6284 | -9/Materials | Repaired Cooling System 7106 | -9/Materials | Entered another Materials area 7106 | -8/Materials | Evolved 2 slots: Propulsion x2 8223 | -8/Materials | Core integrity fell below 50% 8254 | -8/Materials | Core integrity fell below 20% 8321 | -8/Materials | Lost 13 parts (3p2n4u4w) 8707 | -8/Materials | Build established: Scavenger-Mutant 8757 | -8/Materials | Destroyed by Y-45 Defender with Beam Rifle Last Messages --------------- W-25 Informer destroyed. R-06 Scavenger collects Imp. Sensor Array. K-01 Serf collects debris. G-47 Trooper destroyed. R-06 Scavenger collects Aluminum Leg. K-01 Serf collects debris. A-02 Transporter destroyed. R-06 Scavenger collects Aluminum Leg. K-01 Serf collects debris. R-06 Scavenger collects Imp. Heat Sink. R-06 Scavenger collects Com. Wheel. R-06 Scavenger collects Imp. Hover Unit. R-06 Scavenger collects Sml. Storage Unit. Acquired Lgt. Treads. R-06 Scavenger collects Particle Gun. R-06 Scavenger collects Med. Storage Unit. R-06 Scavenger collects Arm. Wheel. W-25 Informer destroyed. K-01 Serf collects debris. R-06 Scavenger collects Cryofiber Web. Map ----- +----------------------------------------------------+ | ?????????????????????????????????????????????????? | | ?????????????????????????????????????????????????? | | ?????????????????????????????????????????????????? | | ?????????????????????????????????????????????????? | | ?????????????????????????????????????????????????? | | ?#???????????????????????????????????????????????? | | #???????????????????????????????????????????????? | | #???????????????????????????????????????????????? | | #??????????????????????????? ??????????????????? | | ???????????????????????????? #?????????????????? | | ???????????????????????????? +?????????????????? | | #####??????????????????????? ??????????????????? | | # #??????????????????????? ! ??????????????????? | | + T #??????????????????????? #??????????????????? | | # #?????????????????????? #??????????????????? | | # [ #??######?????????????? #??????????????????? | | # #?##!!!!##????????????? #??????????????????? | | # * #?#! !#????????????? #??????????????????? | | # #?# #????????????? #??????????????????? | | ##+#### ############## #??????????????????? | | *=% % #??????????????????? | | ! +??????????????????? | | % %% #??????????????????? | | ##+######+#############+### #??????????????????? | | # # = #??# # #??????????????????? | | # # """ #??# """ @#? #??????????????????? | | # # """ #??# """ #? #??????????????????? | | # ! # """ #??# """ #?? ??????????????????? | | # % # """ "" #??# #?? ?????????????????? | | # !# """ """ #??# #??? ????????????????? | | # # S" #??# #???####???????????????? | | ##### #??# "T"Y #??????????????????????? | | ????###########??# #??????????????????????? | | ???????????????????# ######??????????????????????? | | ???????????????????##????????????????????????????? | | ?????????????????????????????????????????????????? | | ?????????????????????????????????????????????????? | | ?????????????????????????????????????????????????? | | ?????????????????????????????????????????????????? | | ?????????????????????????????????????????????????? | | ?????????????????????????????????????????????????? | | | | | | | | | | | | | | | | | | | +----------------------------------------------------+ Best States ------------- Heat Dissipation 53 Energy Generation 19 Energy Capacity 430 Matter Stores 300 Matter Capacity 300 Sight Range 16 Terrain Scan Density 10 ECM Strength 1 Base Temperature (-) 100 Armor Coverage 150 Resistance: KI 20 Resistance: TH 20 Resistance: EX 20 Resistance: EM 20 Resistance: I 20 Resistance: S 20 Resistance: P 20 Core Shielding 20 Weapon Shielding 33 Evasion (%) 50 Recoil Reduction 4 Offensive Hacking 10 Item Schematics ----------------- Arm. Wheel | -9/Materials | Scanalyzed Lgt. Treads | -9/Materials | Scanalyzed Imp. Treads | -9/Materials | Scanalyzed Field Recycling Unit | -8/Materials | Scanalyzed Lgt. Deuterium Engine | -8/Materials | Scanalyzed Particle Gun | -8/Materials | Scanalyzed Robot Schematics ------------------ None Fabricated ------------ Nothing Alien Tech Used ----------------- None Achievements -------------- Dynamic Key It's Just You Challenges ------------ None Game ------ Seed When do you catch a break Manual? 1 Play Time 02:15:04 Cumulative 9.4 hours Start 2023.07.04 @ 23:24:31 End 2023.07.05 @ 18:25:46 Sessions 33 Manual Loads 0 Difficulty Adventurer Special Mode None Game No. 5 Rogue 0 Adventurer 5 Explorer 0 Win Type - Total 0 Types 0/0/0/0/0/0/0/0/0 Lore% 4 Gallery% 11 Achievement% 10 Wizard Run 0 Options --------- ASCII 0 Keyboard 0 Movement Mouse Keybinds 0 Fullscreen 2 Font 18/SmallcapsGlow Map View 72x50 Tactical HUD 0 Map Filters NONE Filters NONE Steam 1 RUN: eb2a761a-c68d-479a-a421-e02e7313c4e2